fUST/lending_fUST_20250409
["ID","MTS","AMOUNT","RATE_DAILY","PERIOD"]
[357526594,1744128086951,-300.0,0.00022144,10]
[357526595,1744128088858,-300.0,0.00022144,10]
[357526598,1744128440117,-2789.80497274,0.00021412,10]
[357526599,1744128440141,-4888.20453712,0.00021628,2]
[357526600,1744128574084,-237.0,0.00021627,2]
[357526601,1744128574107,-300.0,0.00021627,2]
[357526602,1744128574129,-7854.04074589,0.00021628,2]
[357526612,1744128633198,-300.0,0.00021627,2]
[357526613,1744128633209,-12157.75471699,0.00021628,2]
[357526614,1744128633218,-493.0033294,0.0002168,2]
[357526615,1744128633228,-3000.0,0.00022,3]
[357526616,1744128633238,-2907.0327471,0.00022027,2]
[357526617,1744128633248,-1978.0001267,0.00022163,2]
[357526618,1744128633258,-955.814806,0.00022368,2]
[357526619,1744128633267,-11145.813187,0.000225,2]
[357526620,1744128633277,-790.77811864,0.00022937,2]
[357526621,1744128633287,-152.0,0.00022954,2]
[357526622,1744128633296,-4742.0,0.00023,2]
[357526623,1744128633307,-5477.46730616,0.00023,2]
[357526624,1744128633317,-151.0,0.00023023,2]
[357526625,1744128633327,-151.0,0.00023023,2]
[357526626,1744128633340,-151.0,0.00023023,2]
[357526627,1744128633351,-151.0,0.00023023,2]
[357526628,1744128633360,-151.0,0.00023023,2]
[357526629,1744128633370,-151.0,0.00023023,2]
[357526630,1744128633382,-151.0,0.00023023,2]
[357526631,1744128633392,-151.0,0.00023023,2]
[357526632,1744128633401,-151.0,0.00023023,2]
[357526633,1744128633411,-151.0,0.00023023,2]
[357526634,1744128633422,-151.0,0.00023023,2]
[357526635,1744128633432,-151.0,0.00023023,2]
[357526636,1744128633442,-151.0,0.00023023,2]
[357526637,1744128633452,-151.0,0.00023023,2]
[357526638,1744128633461,-151.0,0.00023023,2]
[357526639,1744128633471,-151.0,0.00023023,2]
[357526640,1744128633480,-151.0,0.00023023,2]
[357526641,1744128633490,-151.0,0.00023023,2]
[357526642,1744128633500,-151.0,0.00023023,2]
[357526643,1744128633511,-302.0,0.00023023,2]
[357526644,1744128633520,-2121.41,0.00023027,3]
[357526645,1744128633530,-1060.7,0.00023027,3]
[357526646,1744128633540,-530.35,0.00023027,3]
[357526647,1744128633549,-265.18,0.00023027,3]
[357526648,1744128633559,-795.54,0.00023027,3]
[357526649,1744128633569,-160.0,0.00023027,3]
[357526650,1744128633579,-311.73106,0.00023036,2]
[357526651,1744128633589,-500.0,0.00023036,2]
[357526652,1744128633599,-500.0,0.00023036,2]
[357526653,1744128633608,-500.0,0.00023036,2]
[357526654,1744128633618,-500.0,0.00023036,2]
[357526655,1744128633628,-291.18292769,0.00023036,2]
[357526656,1744128633638,-26141.29755194,0.00023037,2]
[357526657,1744128633648,-4098.38631636,0.00023164,2]
[357526658,1744128633657,-189.92403957,0.000233,2]
[357526659,1744128633667,-189.92403957,0.000233,2]
[357526660,1744128633677,-179.01,0.00023343,2]
[357526661,1744128633687,-1001.26724194,0.00023349,2]
[357526662,1744128633697,-2112.7197851,0.00023353,2]
[357526663,1744128633706,-2545.69,0.00023353,3]
[357526664,1744128633716,-200.0,0.00023356,2]
[357526665,1744128633726,-154.49,0.00023357,2]
[357526666,1744128633736,-837.41003169,0.00023364,3]
[357526667,1744128633746,-419.46366559,0.00023364,3]
[357526668,1744128633756,-12530.86563381,0.00023364,3]
[357526669,1744128633767,-151.0,0.00023364,7]
[357526670,1744128633776,-151.0,0.00023364,7]
[357526671,1744128633787,-151.0,0.00023364,7]
[357526672,1744128633796,-151.0,0.00023364,7]
[357526673,1744128633806,-199.100014,0.00023367,7]
[357526674,1744128633817,-151.0,0.00023367,2]
[357526675,1744128633827,-500.0,0.0002337,2]
[357526676,1744128633837,-500.54160199,0.00023373,2]
[357526677,1744128633847,-223.28343929,0.00023373,2]
[357526684,1744128638889,-4394.60582952,0.000222,3]
[357526685,1744128638899,-500.0,0.00023036,2]
[357526686,1744128638909,-500.0,0.00023036,2]
[357526687,1744128638920,-500.0,0.00023036,2]
[357526688,1744128638930,-278.90944049,0.00023036,2]
[357526689,1744128638940,-500.0,0.00023036,2]
[357526690,1744128638951,-500.0,0.00023036,2]
[357526691,1744128638960,-290.98966425,0.00023036,2]
[357526692,1744128638970,-315.20199055,0.00023036,2]
[357526693,1744128638980,-3431.35336045,0.00023036,2]
[357526694,1744128638990,-500.0,0.00023036,2]
[357526695,1744128639000,-500.0,0.00023036,2]
[357526696,1744128639010,-439.70462773,0.00023036,2]
[357526697,1744128639020,-500.0,0.00023036,2]
[357526698,1744128639030,-3431.35336045,0.00023036,2]
[357526699,1744128639039,-500.0,0.00023036,2]
[357526700,1744128639049,-500.0,0.00023036,2]
[357526701,1744128639059,-3431.35336045,0.00023036,2]
[357526702,1744128639068,-500.0,0.00023036,2]
[357526703,1744128639078,-500.0,0.00023036,2]
[357526704,1744128639088,-3431.35336045,0.00023036,2]
[357526705,1744128639098,-500.0,0.00023036,2]
[357526706,1744128639107,-500.0,0.00023036,2]
[357526707,1744128639117,-3431.35336045,0.00023036,2]
[357526708,1744128639126,-500.0,0.00023036,2]
[357526709,1744128639137,-3431.35336045,0.00023036,2]
[357526710,1744128639146,-3431.35336045,0.00023036,2]
[357526711,1744128639156,-3431.35336045,0.00023036,2]
[357526712,1744128639166,-3431.35336045,0.00023036,2]
[357526713,1744128639175,-3431.35336045,0.00023036,2]
[357526714,1744128639185,-3431.35336045,0.00023036,2]
[357526715,1744128639195,-3431.35336045,0.00023036,2]
[357526716,1744128639205,-3431.35336045,0.00023036,2]
[357526717,1744128639214,-2613.10896512,0.00023036,2]
[357526718,1744128639235,-530.67,0.00023036,2]
[357526719,1744128639249,-287.57439533,0.00023036,2]
[357526720,1744128639258,-3431.35336045,0.00023036,2]
[357526721,1744128639268,-3431.35336045,0.00023036,2]
[357526722,1744128639279,-3431.35336045,0.00023036,2]
[357526723,1744128639289,-10277.80800268,0.00023037,3]
[357526724,1744128639300,-4394.6058294,0.00023038,4]
[357526725,1744128639310,-151.0,0.00023353,2]
[357526726,1744128639321,-160.968227,0.00023356,7]
[357526727,1744128639331,-276.71656071,0.00023373,2]
[357526728,1744128639343,-504.38570631,0.00023373,2]
[357526729,1744128639353,-500.75272988,0.00023373,2]
[357526730,1744128639363,-500.0,0.00023373,2]
[357526731,1744128639372,-501.44743084,0.00023373,2]
[357526732,1744128639386,-500.0,0.00023373,2]
[357526733,1744128639396,-500.0,0.00023373,2]
[357526734,1744128639405,-500.0,0.00023373,2]
[357526735,1744128639415,-500.0,0.00023373,2]
[357526736,1744128639425,-500.0,0.00023373,2]
[357526737,1744128639436,-598.33409461,0.00023373,2]
[357526738,1744128639445,-500.32087333,0.00023373,2]
[357526739,1744128639455,-500.0,0.00023373,2]
[357526740,1744128639464,-500.0,0.00023373,2]
[357526741,1744128639474,-500.0,0.00023373,2]
[357526742,1744128639484,-500.0,0.00023373,2]
[357526743,1744128639494,-500.0,0.00023373,2]
[357526744,1744128639504,-500.0,0.00023373,2]
[357526745,1744128639514,-230.81751865,0.00023373,2]
[357526746,1744128639524,-501.02705968,0.00023373,2]
[357526747,1744128639533,-500.0,0.00023373,2]
[357526748,1744128639542,-335.25981571,0.00023373,2]
[357526749,1744128639552,-500.0,0.00023373,2]
[357526750,1744128639562,-500.0,0.00023373,2]
[357526751,1744128639572,-500.0,0.00023373,2]
[357526752,1744128639581,-500.0,0.00023373,2]
[357526753,1744128639591,-500.0,0.00023373,2]
[357526754,1744128639600,-500.0,0.00023373,2]
[357526755,1744128639610,-500.0,0.00023373,2]
[357526756,1744128639620,-151.0,0.00023373,7]
[357526757,1744128639630,-151.0,0.00023373,7]
[357526758,1744128639639,-151.0,0.00023373,7]
[357526759,1744128639649,-151.0,0.00023373,7]
[357526760,1744128639660,-151.0,0.00023373,7]
[357526761,1744128639669,-1987.442535,0.00023373,2]
[357526762,1744128639679,-1987.442535,0.00023373,2]
[357526763,1744128639688,-151.0,0.00023373,7]
[357526764,1744128639698,-151.0,0.00023373,7]
[357526765,1744128639707,-156.587,0.00023408,2]
[357526766,1744128639718,-162.380719,0.00023463,2]
[357526767,1744128639728,-193.0,0.00023471,2]
[357526768,1744128639738,-420.0,0.0002351,2]
[357526769,1744128639748,-168.3888056,0.00023518,2]
[357526770,1744128639757,-174.61919141,0.00023573,2]
[357526771,1744128639767,-181.08010149,0.00023628,2]
[357526772,1744128639777,-500.0,0.00023644,2]
[357526773,1744128639787,-187.78006525,0.00023683,2]
[357526774,1744128639796,-166.452031,0.00023711,2]
[357526775,1744128639805,-194.72792766,0.00023738,2]
[357526776,1744128639815,-500.0,0.0002389,2]
[357526777,1744128639825,-523.92533122,0.00023918,2]
[357526778,1744128639835,-246.0,0.00023999,2]
[357526779,1744128639844,-502.8704905,0.00024111,2]
[357526780,1744128639854,-535.44368373,0.00024111,2]
[357526781,1744128639864,-500.0,0.00024111,2]
[357526782,1744128639874,-500.0,0.00024111,2]
[357526783,1744128639885,-501.81516497,0.00024111,2]
[357526784,1744128639895,-500.0,0.00024111,2]
[357526785,1744128639905,-500.0,0.00024111,2]
[357526786,1744128639915,-500.0,0.00024111,2]
[357526787,1744128639924,-500.0,0.00024111,2]
[357526788,1744128639934,-160.0,0.00024111,2]
[357526789,1744128639944,-500.0,0.00024111,2]
[357526790,1744128639954,-500.0,0.00024111,2]
[357526791,1744128639964,-500.0,0.00024111,2]
[357526792,1744128639974,-501.61760922,0.00024111,2]
[357526793,1744128639984,-367.54407593,0.00024176,5]
[357526846,1744128646846,-200.0,0.00023353,2]
[357526847,1744128646856,-201.93286099,0.00023793,2]
[357526848,1744128646865,-209.40437684,0.00023848,2]
[357526849,1744128646875,-217.15233878,0.00023903,2]
[357526850,1744128646884,-225.18697532,0.00023958,2]
[357526851,1744128646894,-279.54751655,0.00024013,2]
[357526852,1744128646904,-4027.06175347,0.00024176,5]
[357526853,1744128646913,-4242.82,0.00024397,3]
[357526854,1744128646923,-2121.4,0.00024397,3]
[357526855,1744128646932,-1060.7,0.00024397,3]
[357526856,1744128646942,-530.36,0.00024397,3]
[357526857,1744128646952,-151.0,0.000244,7]
[357526858,1744128646961,-252.0,0.00024539,2]
[357526859,1744128646971,-151.0,0.000246,7]
[357526860,1744128646981,-151.0,0.000246,8]
[357526861,1744128646990,-160.0,0.00024606,3]
[357526862,1744128647000,-200.0,0.00024607,2]
[357526863,1744128647010,-231.588604,0.00024608,7]
[357526864,1744128647020,-151.0,0.00024608,7]
[357526865,1744128647030,-151.0,0.00024608,7]
[357526866,1744128647039,-253.47576124,0.00024658,4]
[357526867,1744128647051,-721.81725696,0.00024658,4]
[357526868,1744128647061,-151.0,0.00024658,7]
[357526869,1744128647070,-790.77811861,0.00024678,2]
[357526870,1744128647080,-500.0,0.0002468,2]
[357526871,1744128647192,-466.49454762,0.00024683,2]
[357526872,1744128647202,-205.16330276,0.000247,2]
[357526873,1744128647212,-151.0,0.000247,7]
[357526874,1744128647222,-151.0,0.000247,7]
[357526875,1744128647232,-207.4,0.00024722,2]
[357526876,1744128647242,-1991.63912229,0.00024737,2]
[357526877,1744128647253,-4742.92373971,0.00024737,2]
[357526878,1744128647270,-3593.7,0.00024737,2]
[357526891,1744129638106,-3025.0,0.00021,2]
[357526892,1744129638131,-403.74872874,0.00021969,2]
[357526911,1744129758121,-4073.38473918,0.00019977,2]
[357526912,1744129758146,-300.0,0.00019999,2]
[357526913,1744129758169,-52.0592413,0.0002,20]
[357526930,1744129831760,-300.0,0.00019999,2]
[357526932,1744129831771,-33978.81838091,0.0002,20]
[357526943,1744129837888,-2615.97498093,0.0002,20]
[357526944,1744129837898,-159.25546128,0.0002,7]
[357526945,1744129837907,-420.0,0.00021777,2]
[357526946,1744129837917,-500.0,0.00021828,2]
[357526947,1744129837926,-31.00955779,0.00021828,2]
[357527028,1744129843212,-1989.60212767,0.00021828,2]
[357527029,1744129843221,-2020.61168546,0.00021828,2]
[357527030,1744129843230,-215.52273641,0.00021828,2]
[357527031,1744129843239,-2020.61168546,0.00021828,2]
[357527032,1744129843248,-2020.61168546,0.00021828,2]
[357527033,1744129843257,-2020.61168546,0.00021828,2]
[357527034,1744129843267,-2020.61168546,0.00021828,2]
[357527036,1744129843278,-561.3508283,0.00021828,2]
[357527037,1744129843291,-521.9432338,0.00021828,2]
[357527046,1744129846031,-937.31762336,0.00021828,2]
[357527047,1744129846041,-624.88237664,0.00021828,2]
[357527048,1744129846087,-549.52846,0.00021828,2]
[357527049,1744129927645,1050.07,0.00017,2]
[357527054,1744130330818,164.93,0.00017,2]
[357527055,1744130331768,-186.92266443,0.00017,2]
[357527058,1744130599380,-160.0,0.00017,2]
[357527060,1744130644702,-184.3913,0.00016999,2]
[357527061,1744130704587,-172.63844085,0.00016999,2]
[357527276,1744130763812,-225.60602692,0.00016999,2]
[357527774,1744130824127,-245.48797287,0.00016999,2]
[357527775,1744130830130,-54.51202713,0.00016999,2]
[357527776,1744130830152,-968.35120362,0.00017,2]
[357527777,1744130830187,-794.79613195,0.00017,2]
[357527778,1744130830209,-6140.41843752,0.00017,2]
[357527779,1744130832303,-445.48797287,0.00017,2]
[357528319,1744130945113,-3444.68887295,0.00017,2]
[357528320,1744130945136,-300.0,0.00020826,2]
[357528321,1744130945161,-8933.4641671,0.00020827,2]
[357528322,1744130945187,-1592.9485722,0.00020827,2]
[357528323,1744130945209,-1996.3172822,0.00020972,2]
[357528324,1744130945231,-3586.08802678,0.0002172,2]
[357528325,1744130945253,-151.0,0.00021809,2]
[357528326,1744130945274,-151.0,0.00021809,2]
[357528327,1744130945295,-164.15100262,0.00021809,2]
[357528328,1744130945317,-273.44,0.00021809,3]
[357528329,1744130945338,-820.35,0.00021809,3]
[357528330,1744130945359,-546.89,0.0002181,3]
[357528331,1744130945380,-154.49,0.00021811,2]
[357528332,1744130945402,-151.0,0.00021811,2]
[357528333,1744130945427,-151.00000001,0.00021813,2]
[357528334,1744130945450,-200.0,0.00021813,2]
[357528335,1744130945475,-2752.22624594,0.00021819,2]
[357528336,1744130945499,-2752.22624594,0.00021819,2]
[357528337,1744130945522,-2752.22624594,0.00021819,2]
[357528338,1744130945545,-2752.22624594,0.00021819,2]
[357528339,1744130945568,-2752.22624594,0.00021819,2]
[357528340,1744130945592,-2752.22624594,0.00021819,2]
[357528341,1744130945615,-2752.22624594,0.00021819,2]
[357528342,1744130945639,-2752.22624594,0.00021819,2]
[357528343,1744130945803,-2752.22624594,0.00021819,2]
[357528344,1744130945825,-2752.22624594,0.00021819,2]
[357528345,1744130945847,-2752.22624594,0.00021819,2]
[357528346,1744130945868,-2752.22624594,0.00021819,2]
[357528347,1744130945891,-2752.22624594,0.00021819,2]
[357528348,1744130945922,-2752.22624594,0.00021819,2]
[357528349,1744130945959,-2752.22624594,0.00021819,2]
[357528350,1744130945985,-2752.22624594,0.00021819,2]
[357528351,1744130946011,-2752.22624594,0.00021819,2]
[357528352,1744130946039,-2752.22624594,0.00021819,2]
[357528353,1744130946065,-2752.22624594,0.00021819,2]
[357528354,1744130946090,-2752.22624594,0.00021819,2]
[357528355,1744130946114,-2752.22624594,0.00021819,2]
[357528356,1744130946139,-2752.22624594,0.00021819,2]
[357528357,1744130946164,-2752.22624594,0.00021819,2]
[357528358,1744130946190,-2752.22624594,0.00021819,2]
[357528359,1744130946214,-2752.22624594,0.00021819,2]
[357528360,1744130946238,-2752.22624594,0.00021819,2]
[357528361,1744130946262,-2752.22624594,0.00021819,2]
[357528362,1744130946287,-2752.22624594,0.00021819,2]
[357528363,1744130946312,-2752.22624594,0.00021819,2]
[357528364,1744130946336,-2752.22624594,0.00021819,2]
[357528365,1744130946359,-2752.22624594,0.00021819,2]
[357528366,1744130946383,-2752.22624594,0.00021819,2]
[357528367,1744130946407,-2752.22624594,0.00021819,2]
[357528368,1744130946431,-2752.22624594,0.00021819,2]
[357528369,1744130946455,-2752.22624594,0.00021819,2]
[357528370,1744130946479,-2752.22624594,0.00021819,2]
[357528371,1744130946505,-2752.22624594,0.00021819,2]
[357528372,1744130946531,-2752.22624594,0.00021819,2]
[357528373,1744130946557,-2752.22624594,0.00021819,2]
[357528374,1744130946583,-2752.22624594,0.00021819,2]
[357528375,1744130946608,-2752.22624594,0.00021819,2]
[357528376,1744130946632,-2752.22624594,0.00021819,2]
[357528377,1744130946657,-2752.22624594,0.00021819,2]
[357528378,1744130946686,-2752.22624594,0.00021819,2]
[357528379,1744130946710,-2752.22624594,0.00021819,2]
[357528380,1744130946734,-2752.22624594,0.00021819,2]
[357528381,1744130946757,-2752.22624594,0.00021819,2]
[357528382,1744130946781,-2752.22624594,0.00021819,2]
[357528383,1744130946804,-2752.22624594,0.00021819,2]
[357528384,1744130946827,-2752.22624594,0.00021819,2]
[357528385,1744130946850,-2752.22624594,0.00021819,2]
[357528386,1744130946873,-2752.22624594,0.00021819,2]
[357528387,1744130946897,-2752.22624594,0.00021819,2]
[357528388,1744130946920,-2752.22624594,0.00021819,2]
[357528389,1744130946947,-2752.22624594,0.00021819,2]
[357528390,1744130946974,-2752.22624594,0.00021819,2]
[357528391,1744130946999,-2752.22624594,0.00021819,2]
[357528392,1744130947024,-2752.22624594,0.00021819,2]
[357528393,1744130947052,-2752.22624594,0.00021819,2]
[357528394,1744130947076,-2752.22624594,0.00021819,2]
[357528395,1744130947100,-2752.22624594,0.00021819,2]
[357528396,1744130947125,-2752.22624594,0.00021819,2]
[357528397,1744130947148,-2752.22624594,0.00021819,2]
[357528398,1744130947171,-2660.48537106,0.00021819,2]
[357528399,1744130947200,-2660.48537106,0.00021819,2]
[357528400,1744130947225,-2660.48537106,0.00021819,2]
[357528401,1744130947248,-2660.48537106,0.00021819,2]
[357528402,1744130947272,-2660.48537106,0.00021819,2]
[357528403,1744130947301,-2660.48537106,0.00021819,2]
[357528404,1744130947325,-2660.48537106,0.00021819,2]
[357528405,1744130947350,-2660.48537106,0.00021819,2]
[357528406,1744130947375,-2660.48537106,0.00021819,2]
[357528407,1744130947401,-2660.48537106,0.00021819,2]
[357528408,1744130947431,-2660.48537106,0.00021819,2]
[357528409,1744130947457,-2660.48537106,0.00021819,2]
[357528410,1744130947484,-2660.48537106,0.00021819,2]
[357528411,1744130947512,-2660.48537106,0.00021819,2]
[357528412,1744130947538,-2660.48537106,0.00021819,2]
[357528413,1744130947563,-2660.48537106,0.00021819,2]
[357528414,1744130947589,-2660.48537106,0.00021819,2]
[357528415,1744130947614,-2660.48537106,0.00021819,2]
[357528416,1744130947639,-2660.48537106,0.00021819,2]
[357528417,1744130947663,-2660.48537106,0.00021819,2]
[357528418,1744130947691,-2660.48537106,0.00021819,2]
[357528419,1744130947715,-2660.48537106,0.00021819,2]
[357528420,1744130947743,-2660.48537106,0.00021819,2]
[357528421,1744130947767,-2660.48537106,0.00021819,2]
[357528422,1744130947794,-650.89674289,0.00021819,2]
[357528436,1744131032045,-300.0,0.00020821,2]
[357528437,1744131032060,-24900.0,0.00020822,2]
[357528438,1744131032070,-200.0,0.00021811,2]
[357528439,1744131032080,-151.0,0.00021819,2]
[357528440,1744131032090,-151.0,0.00021819,2]
[357528442,1744131032101,-151.0,0.00021819,2]
[357528444,1744131032111,-151.0,0.00021819,2]
[357528446,1744131032121,-219.237992,0.00021819,2]
[357528448,1744131032132,-151.0,0.00021819,2]
[357528449,1744131032142,-151.0,0.00021819,2]
[357528453,1744131032152,-151.0,0.00021819,2]
[357528457,1744131032161,-151.0,0.00021819,2]
[357528460,1744131032171,-151.0,0.00021819,2]
[357528463,1744131032181,-151.0,0.00021819,2]
[357528465,1744131032194,-151.0,0.00021819,2]
[357528468,1744131032204,-151.0,0.00021819,2]
[357528471,1744131032214,-151.0,0.00021819,2]
[357528474,1744131032223,-159.52584571,0.00021819,2]
[357528476,1744131032233,-235.22656,0.0002182,2]
[357528478,1744131032245,-151.0,0.0002182,2]
[357528480,1744131032255,-151.0,0.0002182,2]
[357528482,1744131032264,-151.0,0.0002182,2]
[357528484,1744131032274,-151.0,0.0002182,2]
[357528486,1744131032284,-151.0,0.0002182,2]
[357528488,1744131032294,-209.964046,0.0002182,2]
[357528490,1744131032303,-151.0,0.0002182,2]
[357528492,1744131032313,-241.11115,0.0002182,2]
[357528494,1744131032322,-151.0,0.0002182,2]
[357528495,1744131032332,-151.0,0.0002182,2]
[357528497,1744131032341,-283.012123,0.0002182,2]
[357528498,1744131032351,-500.0,0.0002182,2]
[357528500,1744131032361,-151.0,0.0002182,2]
[357528501,1744131032370,-13070.64877597,0.00021821,2]
[357528502,1744131032381,-151.0,0.00021821,2]
[357528503,1744131032391,-1788.698281,0.00021821,2]
[357528504,1744131032401,-1788.698281,0.00021821,2]
[357528505,1744131032411,-1788.698281,0.00021821,2]
[357528506,1744131032421,-1788.698281,0.00021821,2]
[357528507,1744131032430,-1788.698281,0.00021821,2]
[357528508,1744131032440,-1788.698281,0.00021821,2]
[357528509,1744131032449,-1788.698281,0.00021821,2]
[357528510,1744131032458,-1788.698281,0.00021821,2]
[357528511,1744131032468,-1788.698281,0.00021821,2]
[357528512,1744131032479,-1788.698281,0.00021821,2]
[357528513,1744131032488,-1788.698281,0.00021821,2]
[357528514,1744131032500,-1788.698281,0.00021821,2]
[357528515,1744131032509,-1788.698281,0.00021821,2]
[357528516,1744131032519,-1788.698281,0.00021821,2]
[357528517,1744131032528,-151.0,0.00021821,2]
[357528518,1744131032537,-151.0,0.00021822,2]
[357528519,1744131032546,-151.0,0.00021822,2]
[357528520,1744131032555,-151.0,0.00021822,2]
[357528521,1744131032565,-151.0,0.00021822,2]
[357528522,1744131032575,-151.0,0.00021822,2]
[357528523,1744131032585,-151.0,0.00021822,2]
[357528524,1744131032594,-151.0,0.00021822,2]
[357528525,1744131032604,-151.0,0.00021822,2]
[357528526,1744131032613,-151.0,0.00021822,2]
[357528527,1744131032623,-151.0,0.00021822,2]
[357528528,1744131032633,-151.0,0.00021822,2]
[357528529,1744131032643,-151.0,0.00021822,2]
[357528530,1744131032652,-151.0,0.00021822,2]
[357528531,1744131032662,-151.0,0.00021822,2]
[357528532,1744131032671,-151.0,0.00021822,2]
[357528533,1744131032681,-151.0,0.00021822,2]
[357528534,1744131032690,-151.0,0.00021822,2]
[357528535,1744131032700,-151.0,0.00021822,2]
[357528536,1744131032709,-210.823207,0.00021822,2]
[357528537,1744131032719,-151.0,0.00021822,2]
[357528538,1744131032729,-151.0,0.00021822,2]
[357528539,1744131032739,-151.0,0.00021822,2]
[357528540,1744131032749,-151.0,0.00021822,2]
[357528541,1744131032759,-151.0,0.00021822,2]
[357528542,1744131032769,-151.0,0.00021822,2]
[357528543,1744131032778,-151.0,0.00021822,2]
[357528544,1744131032787,-151.0,0.00021823,2]
[357528545,1744131032796,-151.0,0.00021823,2]
[357528546,1744131032806,-151.0,0.00021823,2]
[357528547,1744131032815,-151.0,0.00021823,2]
[357528548,1744131032825,-219.161348,0.00021823,2]
[357528549,1744131032834,-151.0,0.00021824,2]
[357528550,1744131032843,-151.0,0.00021824,2]
[357528551,1744131032853,-151.0,0.00021824,2]
[357528552,1744131032862,-151.0,0.00021824,2]
[357528553,1744131032871,-151.0,0.00021824,2]
[357528554,1744131032881,-151.0,0.00021824,2]
[357528555,1744131032891,-151.0,0.00021824,2]
[357528556,1744131032900,-151.0,0.00021824,2]
[357528557,1744131032909,-151.0,0.00021824,2]
[357528558,1744131032919,-151.0,0.00021824,2]
[357528559,1744131032929,-151.0,0.00021824,2]
[357528560,1744131032938,-1788.698281,0.00021824,2]
[357528561,1744131032947,-1788.698281,0.00021824,2]
[357528562,1744131032956,-1788.698281,0.00021824,2]
[357528563,1744131032966,-957.17098806,0.00021824,2]
[357528564,1744131033056,-831.52729294,0.00021824,2]
[357528565,1744131033068,-500.0,0.00021825,2]
[357528566,1744131033078,-151.0,0.00021825,2]
[357528567,1744131033088,-151.0,0.00021825,2]
[357528568,1744131033098,-151.0,0.00021826,2]
[357528569,1744131033108,-151.0,0.00021826,2]
[357528570,1744131033118,-151.0,0.00021826,2]
[357528571,1744131033128,-151.0,0.00021826,2]
[357528572,1744131033138,-151.0,0.00021826,2]
[357528573,1744131033149,-151.0,0.00021826,2]
[357528574,1744131033159,-151.0,0.00021826,2]
[357528575,1744131033168,-151.0,0.00021827,2]
[357528576,1744131033178,-151.0,0.00021827,2]
[357528577,1744131033187,-244.76912121,0.00021827,2]
[357528578,1744131033197,-151.0,0.00021828,2]
[357528579,1744131033207,-151.0,0.00021829,2]
[357528580,1744131033217,-151.0,0.00021829,2]
[357528581,1744131033228,-151.0,0.00021829,2]
[357528582,1744131033238,-659.89463027,0.00021829,2]
[357528583,1744131033255,-1128.80365073,0.00021829,2]
[357528584,1744131033266,-834.71307018,0.00021829,2]
[357528613,1744131038086,-500.0,0.0002182,2]
[357528615,1744131038096,-500.0,0.0002182,2]
[357528617,1744131038107,-500.0,0.0002182,2]
[357528619,1744131038116,-500.0,0.0002182,2]
[357528621,1744131038126,-259.80482681,0.0002182,2]
[357528623,1744131038138,-240.19517319,0.0002182,2]
[357528625,1744131038148,-500.0,0.0002182,2]
[357528627,1744131038158,-500.0,0.0002182,2]
[357528629,1744131038167,-97.58270888,0.0002182,2]
[357528632,1744131038179,-402.41729112,0.0002182,2]
[357528634,1744131038188,-500.0,0.0002182,2]
[357528636,1744131038198,-500.0,0.0002182,2]
[357528638,1744131038208,-500.0,0.0002182,2]
[357528640,1744131038217,-183.78270888,0.0002182,2]
[357528748,1744131040199,-316.21729112,0.0002182,2]
[357528749,1744131040210,-500.0,0.0002182,2]
[357528750,1744131040220,-500.0,0.0002182,2]
[357528751,1744131040230,-500.0,0.0002182,2]
[357528752,1744131040240,-500.0,0.0002182,2]
[357528753,1744131040261,-500.0,0.0002182,2]
[357528754,1744131040277,-500.0,0.0002182,2]
[357528755,1744131040287,-500.0,0.0002182,2]
[357528756,1744131040297,-330.63946974,0.0002182,2]
[357528757,1744131040420,-0.03231004,0.0002182,2]
[357528774,1744131043525,-169.32822022,0.0002182,2]
[357528775,1744131043535,-500.0,0.0002182,2]
[357528776,1744131043546,-500.0,0.0002182,2]